Workbook

Sheet Sheet1
A2: 2025-11-03
G3: Property Spreadsheet Riverside Sale
C5: Jurupa | D5: 4603 -4607 Jurupa | K5: 5608 Ivanhoe | M5: House and New ADU | P5: 5606 Ivanhoe
C7: Actual | E7: Market Rent | J7: Actual | L7: Market | P7: ADU
A8: \
A9: Monthly | C9: 5905 | E9: 6600 | J9: 2685 | L9: 3000 | P9: 2925
A10: Annual | C10: 70860 | E10: 79200 | J10: =SUM(J9)*(12) -> 32220 | L10: =SUM(L9)*(12) -> 36000 | P10: 37200
A12: Expenses
A14: Insurance | C14: 2100 | E14: 2200 | J14: 1050 | L14: 900 | P14: 900
A15: Taxes | C15: 9700 | E15: 9900 | J15: 2050 | L15: 6500 | P15: 2500
A16: Utilites | C16: 1080 | E16: 1080 | P16: 1320
A17: Inspection | C17: 75 | E17: 75
A18: Trash | C18: 1200 | E18: 1200
A19: Landscape | C19: 1800 | E19: 1800 | J19: 1200 | L19: 900
A20: Total | C20: =SUM(C14:C19) -> 15955 | E20: =SUM(E14:E19) -> 16255 | J20: =SUM(J14:J19) -> 4300 | L20: =SUM(L14:L19) -> 8300 | P20: =SUM(P14:P19) -> 4720
A22: Net | C22: =SUM(C10-C20) -> 54905 | E22: =SUM(E10-E20) -> 62945 | J22: =SUM(J10-J20) -> 27920 | L22: =SUM(L10-L20) -> 27700 | P22: =SUM(P10-P20) -> 32480
C24: 900000 | E24: 905000 | J24: 595000 | L24: 625000 | P24: 585000
A26: Cap Rate | C26: 0.061 | E26: 0.07 | P26: =SUM(P22/P24) -> 0.05552136752
J29: Tenant, mtm, 7 year occupancy | P29: New contruction, mtm lease
C34: 5011 Hedrick | D34: In Escrow | G34: Magnolia
D36: Market | G36: Actual | H36: Market
A38: Monthly | D38: 3300 | G38: 9730 | H38: 10165
A39: Annual | D39: =SUM(D38)*(12) -> 39600 | G39: =SUM(G38*12) -> 116760 | H39: 121980
A41: Expenses
A43: Insurance | D43: 785 | G43: 3500 | H43: 3500
A44: Taxes | D44: 6300 | G44: 17000 | H44: 17000
A45: Utilites | G45: 1800 | H45: 1800
A46: Trash | G46: 4000 | H46: 4000
A47: Misc | G47: 1600 | H47: 1600
A48: Landscape | G48: 1800 | H48: 1800
A49: Total | D49: =SUM(D43:D48) -> 7085 | G49: =SUM(G43:G48) -> 29700 | H49: 29500
A51: Net | D51: =SUM(D39)-(D49) -> 32515 | G51: =SUM(G39-G49) -> 87060 | H51: =SUM(H39-H49) -> 92480
D53: 625000 | G53: 1600000
A55: due to close November 2025 | G55: 0.0544 | H55: 0.058
